Cogmind - Beta 14 *** ADVENTURER MODE // 2024.10.16 @ 21:46:58 // Winter2019/RPGLIKE Player: Noname Result: Smashed by cave-in Performance ------------- Evolutions (0) 0 Regions Visited (2) 400 Robots Destroyed (13) 65 Value Destroyed (166) 166 Prototype IDs (2) 40 Alien Tech Used (0) 0 Bonus (39) 39 TOTAL SCORE: 710 Bonus ------- Follower Combat Kills 39 Cogmind --------- Core Integrity 0/600 Matter 300/300 Energy 265/265 System Corruption 4% Temperature Hot (247) Movement Rolling (90) Location -10/Mines Parts ------- > --- POWER (1) -------- Improved Ion Engine > --- PROPULSION (2) --- Wheel Compact Wheel > --- UTILITY (3) ------ Seismic Detector Tractor Beam > --- WEAPON (2) ------- Beam Rifle Heavy Assault Rifle > --- INVENTORY (1) ---- Grenade Launcher Peak State ------------ > --- POWER ------------ Improved Ion Engine > --- PROPULSION ------- Wheel Compact Wheel > --- UTILITY ---------- Seismic Detector Targeting Computer Tractor Beam > --- WEAPON ----------- Beam Rifle Heavy Assault Rifle > --- INVENTORY -------- Grenade Launcher [Rating: 11] Favorites ----------- Power Light Ion Engine Engine Light Ion Engine Propulsion Wheel Leg Aluminum Leg Wheel Wheel Utility Seismic Detector Device Seismic Detector Processor Targeting Computer Weapon Medium Laser Energy Gun Medium Laser Ballistic Gun Heavy Assault Rifle Launcher Grenade Launcher Build | -11 -10 -10 ------- Run | Yrd Mat Min Slots Evolved 4 | 4 . . Power . | . . . Propulsion 1 | 1 . . Utility 2 | 2 . . Weapon 1 | 1 . . Parts Attached 12 | 3 4 5 Power 1 | . . 1 Engine 1 | . . 1 Core . | . . . Reactor . | . . . Propulsion 2 | 2 . . Treads . | . . . Leg . | . . . Wheel 2 | 2 . . Hover . | . . . Flight . | . . . Utility 3 | . 3 . Device 2 | . 2 . Storage . | . . . Processor 1 | . 1 . Hackware . | . . . Protection . | . . . Artifact . | . . . Weapon 6 | 1 1 4 Energy Gun 4 | 1 1 2 Energy Cannon . | . . . Ballistic Gun 1 | . . 1 Ballistic Cannon . | . . . Launcher 1 | . . 1 Special Weapon . | . . . Impact Weapon . | . . . Slashing Weapon . | . . . Piercing Weapon . | . . . Special Melee Weapon . | . . . Unidentified Prototypes . | . . . Parts Lost 1 | . . 1 Power . | . . . Propulsion . | . . . Utility 1 | . . 1 Weapon . | . . . Highest Loss Streak 1 | . . 1 To Critical Strikes . | . . . Average Slot Usage (%) 92 | . 86 99 Engine 12 | . 12 12 Wheel 25 | . 25 25 Device 19 | . 14 25 Processor 10 | . 10 11 Energy Gun 19 | . 23 14 Ballistic Gun 4 | . . 8 Peak Build Rating 11 | 4 8 11 Average Rating 8 | 3 6 10 On Entrance 5 | 3 4 8 Naked Turns . | . . . Heaviest Build 15 | 5 9 15 Greatest Support 26 | 26 26 26 Greatest Overweight (x) . | . . . Average Overweight (x) . | . . . Largest Inventory Capacity 1 | . 1 1 Average Capacity . | . . 1 Most Carried 1 | . 1 1 Average Carried . | . . 1 Final Capacity 1 | . 1 1 Final Carried 1 | . 1 1 Class Distribution -------------------- 100% | Mutant Dominant Class ---------------- Mutant | -10/Materials Mutant | -10/Mines Resources | -11 -10 -10 ----------- Run | Yrd Mat Min Matter Collected 425 | 230 40 155 Remotely 165 | . 10 155 Salvage Created 288 | . 77 211 Parts 23 | . 13 10 Haulers Intercepted . | . . . Recyclers Shooed 1 | . 1 . Parts Field Recycled . | . . . Retrieved Matter . | . . . Parts Self-Destructed . | . . . Prevented . | . . . Kills | -11 -10 -10 ------- Run | Yrd Mat Min Combat Hostiles Destroyed 17 | . 6 11 Guns 11 | . 6 5 AOE 6 | . . 6 Classes Destroyed 6 | . 3 3 Worker 1 | . 1 . Recycler 1 | . . 1 Watcher 1 | . 1 . Swarmer 9 | . 6 3 Demolisher 1 | . . 1 Assembled 7 | . . 7 Best Kill Streak 12 | . 6 12 Combat Bots Only 11 | . 6 11 Max Kills in Single Turn 3 | . 2 3 Gunslinging . | . . . Exploded 2 | . . 2 Melee . | . . . Uniques/NPCs Destroyed . | . . . Combat | -11 -10 -10 -------- Run | Yrd Mat Min Hostile Shots Fired 84 | . 17 67 Missed 21 | . 6 15 Damage Taken 818 | . 56 762 Core 667 | . 45 622 Absorbed by Shields . | . . . Redirected to Core 476 | . 32 444 Ignored by Resistances 284 | . 22 262 Core Remaining (%) 100 | 100 . . Volleys Fired 30 | . 9 21 Largest 2 | . 2 2 Hottest 90 | . 90 79 Shots Fired 54 | . 18 36 Gun 48 | . 18 30 Cannon . | . . . Launcher 6 | . . 6 Special . | . . . Kinetic 15 | . . 15 Thermal 24 | . 9 15 Explosive 6 | . . 6 Electromagnetic 9 | . 9 . Robot Hit Streak 12 | . 5 12 Robot Miss Streak 1 | . 1 1 Penetration Max . | . . . Secondary Targets 4 | . 1 3 Max Gunslinging Chain 1 | . 1 1 Shots Hit Robots 37 | . 12 25 Core Hits 30 | . 8 22 Critical Kills . | . . . Critical Parts Destroyed . | . . . Critical Strikes 1 | . . 1 Burn 1 | . . 1 Melee Attacks . | . . . Impact . | . . . Slashing . | . . . Piercing . | . . . Sneak Attacks . | . . . Combat Hostiles . | . . . Follow-up Attacks . | . . . Damage Inflicted 979 | . 204 775 Guns 505 | . 154 351 Cannons . | . . . Explosions 474 | . 50 424 Melee . | . . . Ramming . | . . . Kinetic 188 | . . 188 Thermal 277 | . 114 163 Explosive 424 | . . 424 Electromagnetic 90 | . 90 . Impact . | . . . Slashing . | . . . Piercing . | . . . Highest Corruption 4 | . . 4 Average Corruption 4 | . . 4 Corruption Purged . | . . . Corruption Blocked . | . . . Overload Shots . | . . . Overflow Damage 34 | . . 34 Projectiles . | . . . Explosions 34 | . . 34 Melee . | . . . Knockbacks . | . . . Impact . | . . . Kinetic . | . . . Secondary . | . . . Self-Inflicted Damage 58 | . . 58 Shots 4 | . . 4 Rammed . | . . . Targets Rammed . | . . . Kicked . | . . . Crushed . | . . . Highest Temperature 247 | . 80 247 Average Temperature 93 | . 26 133 Received Heat Transfer 120 | . . 120 Siege Activations . | . . . Robots Corrupted . | . . . Combat Hostiles . | . . . Parts Fried . | . . . Impact Corruptions . | . . . Robots Melted . | . . . Combat Hostiles . | . . . Parts Melted . | . . . Heat Transferred 666 | . 185 481 Parts Sabotaged . | . . . Parts Stolen . | . . . Parts Stripped . | . . . Power Chain Reactions 1 | . 1 . Alert | -11 -10 -10 ------- Run | Yrd Mat Min Peak Influence 212 | . 212 148 Initial 69 | . . 69 Average 81 | . 89 79 Maximum Alert Level 1 | . 1 . Low Security (%) 90 | 100 79 100 Level 1 9 | . 20 . Level 2 . | . . . Level 3 . | . . . Level 4 . | . . . Level 5 . | . . . High Security . | . . . Max Security . | . . . Squads Dispatched . | . . . Investigation . | . . . Extermination . | . . . Reinforcement . | . . . Assault . | . . . Garrison . | . . . Intercept . | . . . Searches Triggered . | . . . Construction Impeded . | . . . Haulers Reinforced . | . . . Active Scanning Responses . | . . . Cargo Convoy Interrupts . | . . . Stealth | -11 -10 -10 --------- Run | Yrd Mat Min Distress Signals 2 | . 2 . Communications Jammed . | . . . Distress Signals . | . . . Times Spotted 29 | . 9 20 Peak Tracking Total 22 | . 5 22 Tactical Retreats 3 | . 1 2 Traps | -11 -10 -10 ------- Run | Yrd Mat Min Traps Triggered . | . . . Indirectly . | . . . Trap Hack Attempts . | . . . Triggered . | . . . Disarmed . | . . . Reprogrammed . | . . . Reused . | . . . Traps Extracted . | . . . Installed . | . . . Triggered . | . . . Machines | -11 -10 -10 ---------- Run | Yrd Mat Min Machines Disabled . | . . . Max in Single Turn . | . . . Machines Repaired . | . . . Machines Dismantled . | . . . Machines Sabotaged . | . . . Overloaded Fab Kills . | . . . Hacking | -11 -10 -10 --------- Run | Yrd Mat Min Machines Accessed 3 | . 3 . Terminals 3 | . 3 . Fabricators . | . . . Repair Stations . | . . . Recycling Units . | . . . Scanalyzers . | . . . Garrison Access . | . . . Total Hacks 11 | . 11 . Successful 6 | . 6 . Failed 5 | . 5 . Catastrophic 1 | . 1 . Database Lockouts . | . . . Manual 4 | . 4 . Terminals 11 | . 11 . Fabricators . | . . . Repair Stations . | . . . Recycling Units . | . . . Scanalyzers . | . . . Garrison Access . | . . . Terminal Hacks 6 | . 6 . Prototype ID Bank 1 | . 1 . Branch Access Points 1 | . 1 . Emergency Access Points 1 | . 1 . Locate Traps 2 | . 2 . Registered Components 1 | . 1 . Fabricator Hacks . | . . . Repair Station Hacks . | . . . Recycling Unit Hacks . | . . . Scanalyzer . | . . . Garrison Access Hacks . | . . . Unauthorized Hacks . | . . . Terminals . | . . . Fabricators . | . . . Repair Stations . | . . . Recycling Units . | . . . Scanalyzers . | . . . Garrison Access . | . . . Data Cores Recovered . | . . . Used . | . . . Hacking Detections 2 | . 2 . Full Trace Events . | . . . Feedback Events . | . . . Feedback Blocked . | . . . Robot Schematics Acquired . | . . . Robots Built . | . . . Authchips . | . . . Time . | . . . Total Robot Build Rating . | . . . Part Schematics Acquired . | . . . Parts Built . | . . . Authchips . | . . . Time . | . . . Total Part Build Rating . | . . . Parts Repaired . | . . . Time . | . . . Parts Recycled . | . . . Recycled Matter . | . . . Retrieved Matter . | . . . Retrieved Components . | . . . Parts Scanalyzed . | . . . Part Schematics Acquired . | . . . Parts Damaged . | . . . Bothacking | -11 -10 -10 ------------ Run | Yrd Mat Min Used RIF Installer . | . . . Robots Hacked . | . . . Non-combat . | . . . Combat . | . . . Robot Hacks Applied . | . . . Relay Couplers Released . | . . . Fabnet Peak Effective % . | . . . Robots Rewired . | . . . Allies Hacked . | . . . Hacks Repelled . | . . . Allies | -11 -10 -10 -------- Run | Yrd Mat Min Total Allies 3 | . . 3 Largest Group 3 | . . 3 Highest-Rated Group 40 | . . 40 Highest-Rated Ally 16 | . . 16 Total Orders . | . . . Ally Attacks 9 | . . 9 Total Damage 106 | . . 106 Kills 1 | . . 1 Allies Corrupted . | . . . Allies Melted . | . . . Intel | -11 -10 -10 ------- Run | Yrd Mat Min Robot Analysis Total . | . . . Derelict Logs Recovered 1 | . . 1 Drone Launches . | . . . Drone Recoveries . | . . . Exploration | -11 -10 -10 ------------- Run | Yrd Mat Min Turns Passed 533 | 17 250 266 Spaces Moved 432 | 13 208 211 Core . | . . . Treads . | . . . Legs 1 | 1 . . Wheels 431 | 12 208 211 Hover . | . . . Flight . | . . . Fastest Speed 80 | 80 90 90 Average Speed 89 | 89 90 90 Slowest Speed 120 | 120 90 90 Overloaded Moves . | . . . Propulsion Burnouts . | . . . Robots Hopped . | . . . Cave-ins Triggered 1 | . . 1 Exploration Rate (%) 32 | 2 48 47 Regions Visited 2 Branch Regions 1 Pre-discovered Areas . | . . . Known Exits Taken 1 | . 1 . Unknown Exits Taken 1 | 1 . . Scrap Searched . | . . . Spaces Dug 16 | . . 16 Terrain Destroyed 38 | . 3 35 Melee . | . . . Projectile . | . . . AOE 38 | . 3 35 Terrain Rammed . | . . . Walls Destroyed . | . . . Machines Disabled . | . . . Actions | -11 -10 -10 --------- Run | Yrd Mat Min Total 519 | 17 250 252 Wait 32 | . 20 12 Move 430 | 12 207 211 Hop . | . . . Pick Up 1 | . 1 . Fast Attach 9 | 3 4 2 Attach . | . . . Detach . | . . . Swap 3 | . . 3 Drop 5 | 2 . 3 Fire 30 | . 9 21 Melee . | . . . Ram . | . . . Kick . | . . . Crush . | . . . Escape Stasis . | . . . Rewire . | . . . Trap . | . . . Miscellaneous 9 | . 9 . Route ------- -11/Scrapyard -10/Materials (discovered 2 exits: [*Mat] / *Min) -10/Mines History --------- Turn | Location | Event 1 | -11/Scrapyard | Upgraded with Utility slot (x2) 1 | -11/Scrapyard | Upgraded with Propulsion slot (x1) 1 | -11/Scrapyard | Discovered new exit (range 1) 14 | -11/Scrapyard | Upgraded with Weapon slot (x1) 18 | -11/Scrapyard | Entered Materials 44 | -10/Materials | Identified exit to Mines 79 | -10/Materials | Discovered new exit (range 14) 268 | -10/Materials | Entered Mines 304 | -10/Mines | Build established: Mutant 318 | -10/Mines | Met a Derelict bent on vengeance 328 | -10/Mines | Joined a pair of Derelicts in attacking an 0b10 outpost 382 | -10/Mines | Assisted by bots powering up and referring to "LRC-V3" 459 | -10/Mines | Learned Materials terminal intel 463 | -10/Mines | Assembled infested the area 468 | -10/Mines | Assisted by a Guerilla fighting off Assembled 488 | -10/Mines | Reached level 2 502 | -10/Mines | Core integrity fell below 50% 518 | -10/Mines | Lost 5 allies 527 | -10/Mines | Core integrity fell below 20% 535 | -10/Mines | Crushed by falling debris 535 | -10/Mines | Smashed by cave-in Last Messages --------------- 00518_ The unstable cave ceiling collapses. 00521_ as-07923 destroyed. 00521_ Switching to secondary target: as-80592. 00522_ Acquired 3 matter. 00523_ Targeting Computer destroyed. 00523_ System corrupted by crushing effect (+4). 00523_ Knocked back. 00525_ Acquired 3 matter. 00525_ The unstable cave ceiling collapses. 00525_ R-06 Scavenger collects Lgt. Ion Engine. 00526_ U-05 Engineer destroyed. 00527_ as-80592 destroyed. 00527_ Switching to secondary target: as-01222. 00528_ Acquired 3 matter. 00528_ The unstable cave ceiling collapses. 00530_ as-99558 sneak attacks. 00530_ R-06 Scavenger destroyed. 00531_ Acquired 3 matter. 00535_ The unstable cave ceiling collapses. 00535_ Crushed by falling debris. Map ----- +----------------------------------------------------+ | | | | | | | | | | | | | | | | | ?????????????????????????????????????????????????? | | ???########??????????????????????????????????????? | | ???# #??????????????????????????????????????? | | ???# !!% #??????????????????????????????????????? | | ???# ! ! #??????????????????????????????????????? | | #### ! #??????????????????????????????????????? | | # # %!! #??????????????????????????????????????? | | #????????????????????"?????????????????? | | ######??????????????????? "?????????????????? | | # #???????????????????????? ""????????????????? | | # #???????????????????????? ???????????????? | | ## ##?????????????????????""" """ ??????????????? | | #####???##?????# ????????""" """???????????????? | | ##???? ##?#### ???????""" ""????????????????? | | ##??? #?? ???????=" ?????????????????? | | ##?? #???? ??????#% #??????????????????? | | #?? ##?? #?# ??####%%#??????????????????? | | ### ## #?# ?#@*[!=###????????????????? | | ## #??# #%a== #????????????????? | | ?## #???# %aa=* ##???????????????? | | ??## ####???### # #%% ##########??????? | | ###### #?????????# a # #%%% | | ## #?????????# # # ]%%;##### #??????? | | #??###?????????## # *###????????????? | | ###### #???????????????# # % #??????????????? | | #??### #???????????????# %[=#??????????????? | | #### #????????#####??# # = ?????????????? | | ##??????## ##?## # #????????????? | | ##????## ###### ##????????????? | | ## #???## #?????????????? | | ###?## ##??# #### ## ###?????????????? | | ??????# #### ###??# #?# ##???????????????? | | ??????# ## #????# #??###????????????????? | | ?????## #???? ?????????????????????? | | ?????# ##???? ##?????????????????????? | | ##????? ???????????????????????? | | """ ##?????? ???????????????????????? | | #### """ ##??????# ???????????????????????? | | ???## """ ##???????# ???????????????????????? | | #???### ##????????# ???????????????????????? | | #?????## ###?????????# ???????????????????????? | | #??????### #???????????# ???????????????????????? | +----------------------------------------------------+ Best States ------------- Heat Dissipation 25 Energy Generation 12 Energy Capacity 265 Matter Stores 300 Matter Capacity 300 Sight Range 16 Terrain Scan Density 10 Resistance: KI 20 Resistance: TH 20 Resistance: EX 40 Resistance: EM 20 Resistance: I 20 Resistance: S 20 Resistance: P 20 Evasion (%) 42 Targeting Accuracy 5 Offensive Hacking 10 Item Schematics ----------------- None Robot Schematics ------------------ None Fabricated ------------ Nothing Alien Tech Used ----------------- None Achievements -------------- None Challenges ------------ None RPGLIKE | -11 -10 -10 --------- Run | Yrd Mat Min Levels Raised 1 | . . 1 XP Earned 5889 | 4000 765 1124 XP Spent 3450 | 2300 250 900 Upgrades 9 | 4 1 4 Propulsion Slot 1 | 1 . . Utility Slot 2 | 2 . . Weapon Slot 1 | 1 . . Inventory Capacity 1 | . 1 . EX Resistance % 4 | . . 4 Protomatter Created 69 | . 54 15 Integrity Restored 56 | . 56 . Core 45 | . 45 . Parts 11 | . 11 . Protomatter Decayed 47 | . 32 15 Game ------ Seed JunkSpectralCapacitor Manual? 0 Play Time 00:11:06 Cumulative 223.3 hours Start 2024.10.16 @ 21:37:44 End 2024.10.16 @ 21:46:58 Sessions 1 Manual Loads 0 Difficulty Adventurer Special Mode Winter2019/RPGLIKE Game No. 77 Rogue 28 Adventurer 49 Explorer 0 Win Type - Total 14 Types 11/0/3/0/0/0/0/0/0 Lore% 60 Gallery% 67 Achievement% 64 Wizard Run 0 Options --------- Layout 0 ASCII 0 Keyboard 1 Movement Vi Keybinds 0 Fullscreen 2 Font 18/SmallcapsGlow Map View 76x50 Zoom Use 0% Tactical HUD 1 Map Filters NONE Filters NONE Steam X RUN: d4f206cb-5ea2-4e68-b5b7-757b5b4d6fc9